bitfinex/quotes_ETHUSD_20250413
["timestamp","ask_amount","ask_price","bid_price","bid_amount"]
[1744507833893,0.8005,1642.9,1642.3,6.08885]
[1744507834103,0.8005,1643.1,1642.9,6.08643]
[1744507834250,0.8005,1643.4,1643.1,6.08598]
[1744507834450,0.8005,1643.4,1643.2,6.08568]
[1744507834760,0.8005,1643.4,1643.1,6.08598]
[1744507834957,0.8005,1643.4,1643.0,6.695013]
[1744507834958,0.8005,1643.4,1643.2,6.08549]
[1744507835159,0.8005,1643.4,1643.1,6.08604]
[1744507835362,6.88544,1643.4,1643.1,6.7555083]
[1744507835680,12.97068,1643.4,1643.1,0.6694683]
[1744507836006,6.08571,1643.2,1642.8,6.08695]
[1744507836500,6.0855,1643.3,1642.9,6.08672]
[1744507836874,14.78903231,1643.4,1643.0,6.08626]
[1744507837193,20.87414231,1643.4,1643.0,6.08626]
[1744507837584,12.93644,1643.4,1643.0,13.389822]
[1744507837892,0.8005,1643.4,1643.2,6.08536]
[1744507838197,6.88555,1643.4,1643.0,7.303402]
[1744507838781,0.8005,1643.4,1643.1,6.08601]
[1744507839489,0.8005,1643.4,1643.1,12.17193]
[1744507839692,0.8005,1643.4,1643.1,6.08592]
[1744507840282,0.8005,1643.4,1643.1,12.17184]
[1744507840892,11.75180231,1643.6,1643.3,6.08529]
[1744507841190,11.75180231,1643.6,1643.2,6.08566]
[1744507841394,17.83624231,1643.6,1643.2,6.08566]
[1744507841762,17.83624231,1643.6,1643.2,8.08566]
[1744507842086,0.815,1643.6,1643.4,6.0849]
[1744507842289,0.815,1643.6,1643.4,12.16965]
[1744507842478,0.7802,1643.8,1643.6,6.08407]
[1744507842680,6.8638,1643.8,1643.4,6.0846]
[1744507842893,0.7802,1643.8,1643.6,6.08416]
[1744507843196,6.08397,1643.7,1643.3,6.88183]
[1744507843420,6.08397,1643.7,1643.3,12.96697]
[1744507844108,6.86398,1643.8,1643.4,6.0849]
[1744507844310,0.7802,1643.8,1643.6,6.08409]
[1744507844674,6.86399,1643.8,1643.4,6.08492]
[1744507845376,6.86399,1643.8,1643.4,6.08478]
[1744507845910,6.86399,1643.8,1643.4,12.1695]
[1744507847120,6.86399,1643.8,1643.5,6.0845]
[1744507847313,0.7802,1643.8,1643.5,6.0845]
[1744507847508,0.7802,1643.8,1643.5,12.16894]
[1744507847810,0.7802,1643.8,1643.6,1.216894]
[1744507848516,0.8038,1644.0,1643.7,6.08383]
[1744507848715,7.93462231,1644.2,1643.9,6.08309]
[1744507848716,0.8038,1644.2,1643.9,6.08309]
[1744507849019,1.85259231,1644.4,1643.8,6.08346]
[1744507849020,0.8038,1644.4,1643.8,6.08346]
[1744507849219,0.75950379,1644.8,1644.2,6.08176]
[1744507849220,0.8038,1644.6,1644.2,6.08176]
[1744507849419,0.8038,1644.6,1644.3,6.08147]
[1744507849608,6.88443,1644.6,1644.2,6.08176]
[1744507849925,12.96524,1644.6,1644.2,6.08176]
[1744507850125,0.8038,1644.6,1644.3,6.689726]
[1744507850329,0.826,1644.9,1644.4,2.60899231]
[1744507850485,6.07978,1644.8,1644.4,6.8375]
[1744507850819,6.08015,1644.7,1644.3,6.08146]
[1744507851026,6.08015,1644.7,1644.3,6.0814]
[1744507851229,6.90541,1644.9,1644.5,6.08063]
[1744507851532,6.07996,1644.8,1644.4,0.60814]
[1744507851706,6.08023,1644.7,1644.4,0.60814]
[1744507852233,6.08023,1644.7,1644.2,6.83816]
[1744507852399,6.08023,1644.7,1644.3,6.08143]
[1744507852601,6.0805,1644.6,1644.3,6.08143]
[1744507852828,6.911,1644.9,1644.2,0.7564]
[1744507853000,9.90564,1644.9,1644.5,6.08054]
[1744507853202,6.07977,1644.8,1644.6,0.608054]
[1744507853401,6.07977,1644.8,1644.3,12.16659]
[1744507853598,12.16073,1644.7,1644.3,12.16659]
[1744507853794,6.0807,1644.6,1644.3,6.085]
[1744507854132,6.0807,1644.6,1644.2,6.8383]
[1744507854339,0.826,1644.9,1644.2,0.7564]
[1744507854494,6.90557,1644.9,1644.5,6.08055]
[1744507854841,0.826,1644.9,1644.7,6.07998]
[1744507855139,0.02,1645.4,1645.1,6.07842]
[1744507855436,6.09758,1645.4,1645.0,6.07884]
[1744507855597,6.07809,1645.3,1644.8,12.91541]
[1744507855798,6.09758,1645.4,1644.8,0.7564]
[1744507855799,0.02,1645.4,1644.8,0.7564]
[1744507856001,0.02,1645.4,1644.8,0.683652]
[1744507856234,6.09757,1645.4,1644.9,6.07922]
[1744507856437,0.02,1645.4,1645.2,6.83447]
[1744507856596,0.02,1645.4,1645.3,6.07791]
[1744507856799,0.02,1645.4,1645.2,0.7564]
[1744507857018,0.02,1645.4,1645.2,1.439903]
[1744507857225,0.02,1645.4,1645.3,6.07791]
[1744507858137,0.02,1645.4,1645.0,12.91418]
[1744507858452,0.02,1645.4,1645.1,6.07863]
[1744507858849,0.02,1645.4,1645.3,12.2962838]
[1744507859036,0.02,1645.4,1645.3,18.83951995]
[1744507859245,0.02,1645.4,1645.3,21.33129495]
[1744507860165,0.3147612,1645.6,1645.5,6.62718]
[1744507860328,1.2e-06,1645.6,1645.5,9.62718]
[1744507860654,0.02,1646.4,1646.0,6.07509]
[1744507860850,6.07426,1646.3,1645.8,6.83225]
[1744507861154,0.826,1646.1,1645.5,0.7564]
[1744507861349,0.826,1646.1,1645.5,2.04751]
[1744507861350,12.15116,1646.0,1645.5,2.04751]
[1744507861528,6.07576,1645.9,1645.5,1.29111]
[1744507861724,6.90274,1645.7,1645.3,2.491775]
[1744507861955,6.90274,1645.7,1645.2,6.07824]
[1744507862250,6.07582,1645.9,1644.8,1.440052]
[1744507862251,12.15683,1645.2,1644.8,1.440052]
[1744507862436,6.07787,1645.4,1644.8,6.07957]
[1744507862637,6.07919,1645.0,1644.5,0.7564]
[1744507862840,3.826,1645.3,1644.6,6.08028]
[1744507862841,6.07864,1645.2,1644.6,6.08028]
[1744507863038,0.826,1645.3,1644.6,6.894]
[1744507863239,9.07757,1645.4,1644.7,6.83625]
[1744507863440,9.07757,1645.4,1644.8,0.683625]
[1744507863641,6.90338,1645.5,1644.9,6.07921]
[1744507863842,6.90338,1645.5,1644.9,12.15851]
[1744507864056,0.826,1645.5,1645.0,6.07896]
[1744507864245,0.826,1645.5,1645.1,6.07864]
[1744507864444,0.826,1645.5,1645.1,7.2944]
[1744507864640,0.826,1645.5,1645.1,1.21576]
[1744507864853,6.07783,1645.4,1644.8,6.763025]
[1744507865057,6.07793,1645.3,1644.8,6.763025]
[1744507865651,6.07783,1645.4,1644.8,6.763025]
[1744507865652,6.07783,1645.4,1644.9,6.07919]
[1744507865855,0.826,1645.5,1644.8,0.683625]
[1744507866056,6.86108,1645.7,1645.1,6.07833]
[1744507866230,12.41986,1645.9,1645.3,0.8042]
[1744507866436,6.07622,1645.8,1645.3,6.88189]
[1744507866631,6.85994,1646.0,1645.4,6.07719]
[1744507866869,0.7846,1646.2,1645.7,0.8042]
[1744507867024,0.02,1646.4,1645.9,6.07548]
[1744507867025,6.09392,1646.4,1645.9,6.07548]
[1744507867225,0.02,1646.4,1646.1,6.0748]
[1744507867452,0.02,1646.4,1646.3,6.07422]
[1744507867780,1e-05,1646.4,1646.3,10.42842]
[1744507867929,1e-05,1646.4,1646.3,12.3403938]
[1744507868259,6.4679291,1647.2,1646.7,6.07249]
[1744507868465,2.3088129,1647.2,1646.3,6.87837]
[1744507868772,2.3088129,1647.2,1646.3,0.8042]
[1744507868773,6.07278,1646.7,1646.3,0.8042]
[1744507868972,0.7846,1647.1,1646.3,0.8042]
[1744507869176,6.0724,1646.8,1646.3,0.8042]
[1744507869459,6.073,1646.7,1646.3,2.31764838]
[1744507869764,6.07182,1647.0,1646.4,0.55]
[1744507869984,6.85622,1647.1,1646.3,5.31764838]
[1744507869985,6.07218,1646.9,1646.3,5.31764838]
[1744507870274,6.07277,1646.7,1646.3,2.31764838]
[1744507870438,6.07331,1646.6,1646.3,0.8042]
[1744507871056,6.07353,1646.5,1646.0,4.386248]
[1744507871229,6.07353,1646.5,1646.0,10.461348]
[1744507871432,6.0745,1646.3,1646.0,1.386248]
[1744507871664,6.0745,1646.3,1646.0,0.7787]
[1744507872161,6.07317,1646.6,1646.0,7.1207]
[1744507872336,6.0729,1646.7,1646.2,6.07442]
[1744507872542,6.4677491,1647.2,1646.6,6.07293]
[1744507872729,6.07168,1647.0,1646.7,0.7787]
[1744507872937,6.07259,1646.8,1646.4,0.7787]
[1744507873168,12.14323,1647.1,1646.5,0.55]
[1744507873356,0.3968391,1647.2,1646.8,6.85104]
[1744507873569,0.3968391,1647.2,1647.0,1.3287]
[1744507873886,0.3968391,1647.2,1647.0,0.7787]
[1744507874100,0.3968391,1647.2,1646.9,0.685104]
[1744507874301,0.3968391,1647.2,1647.0,6.07147]
[1744507874595,0.3968391,1647.2,1647.1,17.00897]
[1744507874749,0.3968391,1647.2,1647.1,19.317014]
[1744507874947,0.3968391,1647.2,1647.1,19.77314187]
[1744507875280,6.0652,1648.8,1647.9,6.06822]
[1744507875457,6.06646,1648.5,1647.9,13.49461]
[1744507875648,6.4615591,1648.9,1648.3,6.06685]
[1744507875649,0.3968391,1648.9,1648.3,6.06685]
[1744507875862,0.3968391,1648.9,1648.3,0.55]
[1744507876053,6.06539,1648.7,1648.2,12.67299]
[1744507876276,6.4617891,1648.9,1648.2,12.67299]
[1744507876590,0.3968391,1648.9,1648.3,0.55]
[1744507876887,0.3968391,1648.9,1648.2,6.606]
[1744507876888,6.06602,1648.6,1648.2,6.606]
[1744507877090,6.4615191,1648.9,1647.8,6.893]
[1744507877091,6.06819,1648.0,1647.8,6.893]
[1744507877292,6.06819,1648.0,1647.7,0.8175]
[1744507877293,6.06823,1648.0,1647.4,0.8175]
[1744507877452,0.02,1648.4,1647.9,6.06813]
[1744507877657,0.02,1648.4,1648.1,0.55]
[1744507877881,0.02,1648.4,1648.0,4.424313]
[1744507877882,6.08668,1648.4,1648.0,4.424313]
[1744507878198,0.02,1648.4,1648.1,0.55]
[1744507878498,0.02,1648.4,1647.6,0.8175]
[1744507878699,0.02,1648.4,1647.3,0.8175]
[1744507878700,6.06968,1647.6,1647.3,0.8175]
[1744507878900,6.07051,1647.4,1647.0,0.8175]
[1744507879081,6.07072,1647.3,1647.0,0.8175]
[1744507879268,10.7127,1648.0,1647.1,6.07109]
[1744507879593,6.06973,1647.6,1647.0,0.8175]
[1744507879789,6.07012,1647.5,1647.0,0.8175]
[1744507879993,3.0,1647.9,1647.0,1.506429]
[1744507880199,6.07017,1647.4,1646.7,0.7766]
[1744507880502,6.07146,1647.1,1646.7,0.7766]
[1744507880708,6.07203,1646.9,1646.7,0.7766]
[1744507880871,6.07076,1647.3,1646.7,6.84935]
[1744507881057,6.07017,1647.4,1646.8,0.684935]
[1744507881398,6.07108,1647.2,1646.8,0.684935]
[1744507881613,6.0698,1647.5,1646.7,0.7766]
[1744507881788,6.07239,1646.8,1646.4,0.7766]
[1744507881997,6.07207,1646.9,1646.3,65.06022]
[1744507881998,6.07366,1646.5,1646.3,6.891]
[1744507882305,6.07366,1646.5,1646.1,3.7766]
[1744507882591,6.07366,1646.5,1646.1,0.7766]
[1744507882757,6.07386,1646.4,1646.1,0.7766]
[1744507883108,12.14806,1646.4,1646.1,1.59826]
[1744507883275,6.0724,1646.8,1646.1,0.82166]
[1744507883456,6.0724,1646.8,1646.0,6.89]
[1744507883457,6.07501,1646.1,1645.8,0.7766]
[1744507883777,6.0739,1646.4,1645.5,0.7766]
[1744507883778,6.07533,1646.0,1645.5,0.7766]
[1744507884090,6.07592,1645.9,1645.3,6.89]
[1744507884264,0.7818,1646.8,1645.9,6.07533]
[1744507884465,6.0722,1646.9,1646.3,6.07404]
[1744507884679,3.0,1647.1,1646.1,5.54084645]
[1744507884680,6.07305,1646.7,1646.1,11.06580645]
[1744507884886,6.07425,1646.3,1646.0,0.607533]
[1744507885191,3.0,1646.8,1645.9,0.7766]
[1744507885192,6.07499,1646.1,1645.9,0.7766]
[1744507885358,6.07499,1646.1,1645.7,3.0]
[1744507885697,6.07474,1646.2,1645.7,3.0]
[1744507885991,0.7818,1646.6,1646.0,6.07509]
[1744507886194,2.54084645,1647.0,1645.8,0.55]
[1744507886195,3.7818,1646.9,1646.1,0.7766]
[1744507886403,6.07369,1646.5,1646.1,0.7766]
[1744507887089,6.07479,1646.2,1645.7,0.7766]
[1744507887590,6.0742,1646.4,1645.8,3.0]
[1744507887776,6.07352,1646.5,1645.9,6.07552]
[1744507887977,6.07347,1646.6,1646.1,6.07495]
[1744507888299,6.07347,1646.6,1646.2,0.7766]
[1744507889208,6.0744,1646.3,1645.9,0.7766]
[1744507889710,6.0746,1646.2,1645.9,0.7766]
[1744507890081,6.07378,1646.5,1645.9,0.7766]
[1744507890478,6.07402,1646.4,1645.9,0.7766]
[1744507890678,6.07491,1646.2,1645.9,1.461845]
[1744507891014,6.07423,1646.3,1646.0,2.2]
[1744507891212,13.24033,1646.6,1646.0,2.2]
[1744507891515,6.07489,1646.2,1645.7,3.0]
[1744507891806,6.07504,1646.1,1645.7,3.0]
[1744507892306,6.07489,1646.2,1645.1,6.55102917]
[1744507892307,6.07459,1646.2,1645.3,0.7766]
[1744507892479,6.07738,1645.5,1645.3,0.7766]
[1744507892681,12.1528,1645.8,1645.3,0.7766]
[1744507892881,6.07657,1645.7,1645.3,0.7766]
[1744507893543,6.0757,1645.9,1645.3,2.17877]
[1744507893699,6.07788,1645.4,1645.2,7.167]
[1744507894192,6.07674,1645.7,1645.2,7.167]
[1744507894404,6.07669,1645.7,1645.2,13.237]
[1744507894704,9.07559,1646.0,1645.2,6.07]
[1744507894890,6.07792,1645.3,1645.1,0.02]
[1744507895095,6.07736,1645.5,1645.1,0.02]
[1744507895096,6.07756,1645.4,1645.1,0.02]
[1744507895321,6.07681,1645.6,1645.1,0.39966]
[1744507895525,6.07824,1645.3,1645.1,0.02]
[1744507895727,6.07828,1645.2,1645.1,0.02]
[1744507896102,9.89138,1645.2,1645.1,0.02]
[1744507898518,17.61138,1645.2,1645.1,1e-05]
[1744507898828,19.980342,1645.2,1645.1,1e-05]
[1744507899399,19.430342,1645.2,1645.1,1e-05]
[1744507900834,19.980342,1645.2,1645.1,1e-05]
[1744507902854,6.08198,1644.2,1644.1,0.02]
[1744507904659,9.08198,1644.2,1644.1,0.02]
[1744507904963,9.08198,1644.2,1643.6,8.90924663]
[1744507904964,6.08383,1643.7,1643.6,8.90924663]
[1744507905118,6.88283,1643.7,1643.6,8.90924663]
[1744507905520,6.08358,1643.8,1643.6,8.90924663]
[1744507905721,9.88283,1643.7,1643.6,8.90924663]
[1744507905920,11.479471,1643.7,1643.6,8.90924663]
[1744507906364,11.479471,1643.7,1643.4,1.68e-06]
[1744507906365,7.43357,1643.5,1643.4,1.68e-06]
[1744507906531,6.08568,1643.2,1643.1,0.02]
[1744507907057,6.08854,1642.5,1642.3,0.3968391]
[1744507907218,6.08865,1642.4,1642.3,0.3968391]
[1744507907724,3.0,1642.5,1642.3,0.3968391]
[1744507908068,9.08865,1642.4,1642.3,0.3968391]
[1744507909835,3.0,1642.4,1642.3,0.3968391]
[1744507910334,3.0,1642.6,1642.3,0.3968391]
[1744507910534,9.08812,1642.6,1642.3,0.3968391]
[1744507910744,13.289,1642.8,1642.3,6.4856491]
[1744507910947,6.08607,1643.1,1642.4,0.64856491]
[1744507911157,6.08607,1643.1,1642.6,0.7976]
[1744507911354,8.90701645,1643.3,1642.6,0.7976]
[1744507911528,6.0859,1643.2,1642.6,6.88541]
[1744507911740,3.0,1643.1,1642.6,6.88541]
[1744507912073,4.99084645,1643.2,1642.4,0.64856491]
[1744507912254,4.99084645,1643.2,1642.3,1.1944391]
[1744507912255,9.08679,1642.9,1642.3,1.1944391]
[1744507912464,9.08679,1642.9,1642.3,7.2832991]
[1744507912645,6.08719,1642.8,1642.3,7.2832991]
[1744507912839,6.08719,1642.8,1642.3,1.1944391]
[1744507913176,12.17259,1643.1,1642.5,6.0881]
[1744507913457,0.8306,1643.3,1642.6,0.60881]
[1744507913458,6.08555,1643.3,1642.6,0.60881]
[1744507913665,6.08401,1643.7,1643.1,12.17172]
[1744507913873,7.181,1643.8,1643.2,6.88302]
[1744507914049,13.26451,1643.8,1643.2,12.96842]
[1744507914232,7.181,1643.8,1643.3,6.08529]
[1744507914435,1.71545365,1644.2,1643.6,6.08385]
[1744507914632,6.08254,1644.1,1643.7,0.7976]
[1744507914889,9.91223,1644.3,1643.7,0.7976]
[1744507915044,6.08456,1643.6,1643.4,0.8044]
[1744507915239,6.08383,1643.7,1643.4,0.8044]
[1744507915444,6.08384,1643.7,1643.4,0.8044]
[1744507915752,13.40111,1643.9,1643.4,0.8044]
[1744507916072,7.318,1643.9,1643.4,6.88919]
[1744507916252,7.318,1643.9,1643.5,0.688919]
[1744507916646,6.08235,1644.1,1643.5,6.773479]
[1744507916962,6.08179,1644.3,1643.7,6.08351]
[1744507917159,6.08067,1644.6,1644.0,6.08272]
[1744507917370,6.08067,1644.6,1643.8,7.868]
[1744507917371,6.0826,1644.1,1643.8,7.318]
[1744507917556,6.08145,1644.4,1643.8,13.4013]
[1744507917753,6.08145,1644.4,1643.8,13.40122]
[1744507917964,6.688817,1644.6,1644.0,6.08246]
[1744507918272,6.08216,1644.2,1643.8,7.318]
[1744507918464,0.558216,1644.2,1643.7,6.08354]
[1744507918662,6.08207,1644.2,1643.7,6.08354]
[1744507918865,6.08207,1644.2,1643.6,6.88855]
[1744507918866,6.08215,1644.2,1643.6,6.88855]
[1744507919071,6.08375,1643.8,1643.6,0.8044]
[1744507919257,6.08325,1643.9,1643.6,0.8044]
[1744507919447,6.0836,1643.8,1643.6,0.8044]
[1744507920151,6.08274,1644.0,1643.6,0.8044]
[1744507920355,6.08274,1644.0,1643.3,0.7924]
[1744507920356,3.0,1643.8,1643.3,0.7924]
[1744507920554,6.08494,1643.4,1642.7,0.7924]
[1744507920794,6.08534,1643.3,1642.7,6.87993]
[1744507920999,6.08615,1643.1,1642.8,0.687993]
[1744507921153,6.0871,1642.9,1642.7,0.7924]
[1744507921349,6.0864,1643.1,1642.5,6.08813]
[1744507921555,6.0864,1643.1,1642.6,6.0879]
[1744507921854,6.08679,1643.0,1642.4,59.06096]
[1744507922046,3.0,1643.2,1642.4,52.9724]
[1744507922273,3.0,1643.2,1642.5,5.29724]
[1744507922468,6.08651,1643.0,1642.5,11.38539]
[1744507922672,6.08651,1643.0,1642.4,0.7924]
[1744507922673,6.08777,1642.7,1642.4,0.7924]
[1744507923183,6.08828,1642.5,1642.3,0.3968391]
[1744507923607,6.0879,1642.6,1642.3,0.3968391]
[1744507923821,6.08865,1642.4,1642.3,0.3968391]
[1744507923975,9.85345,1642.4,1642.3,0.3968391]
[1744507924180,12.729523,1642.4,1642.3,0.3968391]
[1744507924582,9.08865,1642.4,1642.3,0.3968391]
[1744507925226,9.63865,1642.4,1642.3,0.3968391]
[1744507927283,18.56169645,1642.4,1642.3,9.1e-06]
[1744507927713,6.09209,1641.5,1641.2,0.7563]
[1744507927891,6.09255,1641.4,1641.1,0.02]
[1744507928390,6.092,1641.5,1641.1,0.02]
[1744507928717,3.0,1642.2,1641.2,0.7563]
[1744507928914,6.09036,1642.0,1641.4,6.09218]
[1744507929102,6.08905,1642.3,1641.8,6.09066]
[1744507929298,3.0,1642.2,1641.4,0.7563]
[1744507929505,2.81304645,1642.6,1641.5,6.09198]
[1744507929506,6.09031,1642.0,1641.5,6.09198]
[1744507929688,6.08983,1642.1,1641.6,0.609198]
[1744507929889,6.08983,1642.1,1641.6,6.09142]
[1744507930314,13.41237,1642.3,1641.7,6.88024]
[1744507930515,7.323,1642.3,1641.7,0.7892]
[1744507930689,7.323,1642.3,1641.9,6.09033]
[1744507931415,6.08888,1642.4,1641.9,6.09033]
[1744507931715,6.08888,1642.4,1642.0,0.609033]
[1744507931916,6.08888,1642.4,1642.0,6.699083]
[1744507932103,6.09066,1641.9,1641.4,0.7892]
[1744507932481,3.0,1642.2,1641.4,0.7892]
[1744507932682,6.09129,1641.7,1641.4,0.7892]
[1744507933082,6.09106,1641.8,1641.4,0.7892]
[1744507933387,6.09164,1641.6,1641.4,0.7892]
[1744507933583,12.18351,1641.6,1641.1,6.90242]
[1744507933789,6.09164,1641.6,1641.2,0.690242]
[1744507934195,6.09125,1641.7,1641.2,6.783202]
[1744507934908,10.323,1641.9,1641.2,0.690242]
[1744507935103,6.09147,1641.7,1641.2,6.09308]
[1744507935309,6.09182,1641.6,1641.1,6.90266]
[1744507935523,6.09163,1641.6,1641.1,6.90251]
[1744507935911,6.09173,1641.6,1641.1,6.90251]
[1744507936109,10.323,1641.9,1641.4,6.09217]
[1744507936290,16.41371,1641.9,1641.4,7.310657]
[1744507936493,10.323,1641.9,1641.4,1.218487]
[1744507936688,6.08879,1642.4,1641.9,0.7892]
[1744507936900,6.08978,1642.1,1641.9,0.7892]
[1744507937196,6.08749,1642.8,1642.2,6.08934]
[1744507937516,6.08749,1642.8,1642.4,0.7892]
[1744507937908,6.08611,1643.1,1642.4,0.7892]
[1744507938124,6.08556,1643.3,1642.5,0.7892]
[1744507938285,6.08502,1643.4,1642.9,6.08662]
[1744507938486,8.83117645,1643.7,1642.9,0.608662]
[1744507938487,6.0842,1643.6,1642.9,0.608662]
[1744507938699,3.0,1643.5,1642.9,6.08678]
[1744507938935,6.08574,1643.2,1642.8,6.08701]
[1744507939137,6.08439,1643.6,1642.8,6.08716]
[1744507939339,7.324,1643.9,1643.2,0.7892]
[1744507939542,6.08513,1643.4,1643.2,0.7892]
[1744507940049,6.0859,1643.2,1642.9,0.7892]
[1744507940233,6.08626,1643.1,1642.9,0.7892]
[1744507940434,6.08642,1643.0,1642.6,8.1132]
[1744507940636,6.08626,1643.1,1642.6,15.621046]
[1744507940944,6.08481,1643.5,1643.0,6.08627]
[1744507941103,6.08435,1643.6,1643.1,6.87505]
[1744507941405,6.08515,1643.4,1643.1,0.7892]
[1744507941601,5.74734645,1643.8,1643.1,0.7892]
[1744507941602,6.08459,1643.5,1643.1,0.7892]
[1744507941825,12.16952,1643.5,1643.1,0.7892]
[1744507942245,6.08496,1643.4,1643.1,0.7892]
[1744507942436,6.08568,1643.2,1642.8,6.86411]
[1744507942633,6.08679,1642.9,1642.8,0.7772]
[1744507942834,6.08679,1642.9,1642.6,7.324]
[1744507943016,6.08755,1642.7,1642.5,0.7772]
[1744507943418,0.608755,1642.7,1642.2,0.7772]
[1744507943749,6.08842,1642.5,1642.2,0.7772]
[1744507944045,6.08865,1642.4,1642.2,0.7772]
[1744507944741,6.08902,1642.3,1641.9,53.0052]
[1744507944949,6.08796,1642.6,1641.9,0.7772]
[1744507944950,6.08977,1642.1,1641.9,0.7772]
[1744507945115,6.08925,1642.3,1641.9,0.7772]
[1744507945822,12.17858,1642.3,1641.9,0.7772]
[1744507946017,6.08847,1642.5,1641.9,2.223884]
[1744507946346,7.599,1643.0,1642.4,0.7772]
[1744507946648,12.17243,1643.1,1642.6,6.08762]
[1744507946944,6.08608,1643.1,1642.6,6.08762]
[1744507947146,6.0863,1643.1,1642.8,0.7772]
[1744507947316,6.08545,1643.3,1642.8,6.86407]
[1744507947641,6.08545,1643.3,1642.9,6.08664]
[1744507947846,6.08651,1643.0,1642.8,0.7772]
[1744507948044,6.08696,1642.9,1642.5,0.7772]
[1744507948250,12.1738,1642.9,1642.5,6.86531]
[1744507948447,6.0868,1642.9,1642.5,6.86531]
[1744507949827,12.17387,1642.9,1642.5,6.86531]
[1744507950151,6.08771,1642.7,1642.5,0.7772]
[1744507950519,6.08681,1642.9,1642.5,0.7772]
[1744507950721,6.08681,1642.9,1642.5,6.8653]
[1744507951046,6.08788,1642.7,1642.5,0.7772]
[1744507951260,6.08719,1642.8,1642.5,0.7772]
[1744507951424,3.0,1643.0,1642.5,0.7772]
[1744507952046,6.08711,1642.9,1642.5,6.86533]
[1744507952253,6.0852,1643.4,1643.0,0.8254]
[1744507952425,8.82659645,1643.7,1643.2,6.08568]
[1744507952426,6.08427,1643.6,1643.2,6.08568]
[1744507952624,6.0846,1643.5,1643.1,6.08589]
[1744507952825,0.88265965,1643.6,1643.0,0.8254]
[1744507953023,6.08569,1643.2,1643.0,0.8254]
[1744507953225,6.08497,1643.4,1642.5,0.8254]
[1744507953226,6.08736,1642.8,1642.5,0.8254]
[1744507953649,6.08769,1642.7,1642.5,0.8254]
[1744507954058,6.0879,1642.6,1642.5,0.8254]
[1744507954715,6.0879,1642.6,1642.4,7.599]
[1744507954911,6.08938,1642.3,1641.9,2.225084]
[1744507955144,6.08888,1642.4,1642.0,6.09003]
[1744507955363,6.08888,1642.4,1641.9,6.86885]
[1744507955656,6.08888,1642.4,1641.9,6.86874]
[1744507955827,12.17783,1642.4,1642.0,6.09011]
[1744507956028,6.08906,1642.3,1641.9,6.86874]
[1744507956239,6.08906,1642.3,1641.9,8.1647]
[1744507956439,6.08906,1642.3,1641.9,14.255]
[1744507956877,6.08773,1642.7,1642.2,6.08921]
[1744507957173,6.08773,1642.7,1642.0,1.09020695]
[1744507957174,6.08717,1642.8,1642.4,6.08861]
[1744507957407,6.08717,1642.8,1642.3,6.86717]
[1744507957580,6.08865,1642.4,1642.3,0.7784]
[1744507957885,6.08945,1642.2,1642.0,0.7784]
[1744507958175,6.08945,1642.2,1641.7,13.68922]
[1744507958176,6.09009,1642.1,1641.7,6.8696]
[1744507958385,6.09017,1642.0,1641.8,0.19023294]
[1744507958683,6.08998,1642.1,1641.7,6.86958]
[1744507959025,12.17999,1642.1,1641.7,6.86958]
[1744507959446,6.09064,1641.9,1641.7,0.7784]
[1744507959680,6.09014,1642.0,1641.7,0.7784]
[1744507959991,6.08894,1642.4,1642.0,6.0899]
[1744507960143,12.17787,1642.4,1642.1,0.8256]
[1744507960326,6.08905,1642.3,1642.1,0.8256]
[1744507960533,6.08939,1642.2,1641.9,0.8256]
[1744507960852,0.608753,1642.6,1642.2,6.08902]
[1744507960853,12.784863,1642.6,1642.2,6.08902]
[1744507961062,12.17611,1642.6,1642.2,6.08902]
[1744507961272,6.08792,1642.6,1642.2,12.17825]
[1744507961479,12.17612,1642.6,1642.2,6.08902]
[1744507961662,6.08792,1642.6,1642.1,6.08961]
[1744507961861,6.08832,1642.5,1642.1,7.307582]
[1744507962683,6.08908,1642.3,1641.9,0.8256]
[1744507962880,6.0894,1642.2,1641.9,0.8256]
[1744507963415,6.08868,1642.4,1641.9,0.8256]
[1744507963553,3.7542,1642.8,1641.9,6.91601]
[1744507963554,6.08917,1642.3,1641.9,6.91601]
[1744507963976,6.08917,1642.3,1642.0,6.0901]
[1744507964219,6.08917,1642.3,1641.9,6.91601]
[1744507964522,3.7542,1642.8,1641.9,2.126288]
[1744507964676,13.68696,1642.9,1642.1,6.63946]
[1744507964881,6.08804,1642.6,1642.3,0.8133]
[1744507965220,6.87018,1643.0,1642.0,0.8133]
[1744507965221,6.08864,1642.5,1642.0,0.8133]
[1744507965421,6.08904,1642.3,1642.0,2.263676]
[1744507965717,6.08904,1642.3,1642.1,0.19020305]
[1744507966085,6.08831,1642.5,1642.1,6.08975]
[1744507966305,6.08871,1642.4,1642.0,14.443496]
[1744507966477,6.08976,1642.1,1642.0,0.8133]
[1744507966806,6.09013,1642.0,1641.5,6.90508]
[1744507967178,6.09013,1642.0,1641.6,6.28183777]
[1744507967382,6.09106,1641.8,1641.6,0.19024777]
[1744507967576,6.09124,1641.7,1641.6,0.19024777]
[1744507967776,6.09106,1641.8,1641.6,0.19024777]
[1744507967977,6.09072,1641.9,1641.6,0.19024777]
[1744507968216,6.09072,1641.9,1641.5,6.90515]
[1744507968376,6.09072,1641.9,1641.5,14.296701]
[1744507968710,6.09013,1642.0,1641.5,0.8133]
[1744507968948,6.09161,1641.6,1641.3,0.8133]